fUSD/lending_fUSD_20250422
["ID","MTS","AMOUNT","RATE_DAILY","PERIOD"]
[358655561,1745339457649,-500.0,0.00054794,120]
[358655562,1745339457659,-569.14,0.00054794,120]
[358655563,1745339457669,-500.0,0.00054794,120]
[358655564,1745339457679,-569.14,0.00054794,120]
[358655565,1745339457689,-569.14,0.00054794,120]
[358655566,1745339457699,-569.14,0.00054794,120]
[358655567,1745339457709,-629.68,0.00054794,120]
[358655568,1745339457719,-569.14,0.00054794,120]
[358655569,1745339457730,-569.14,0.00054794,120]
[358655570,1745339457739,-569.1835777,0.00054794,120]
[358655571,1745339457750,-500.0,0.00054794,120]
[358655572,1745339457760,-503.47966482,0.00054794,120]
[358655573,1745339457770,-589.6133239,0.00054794,120]
[358655574,1745339457780,-523.2313894,0.00054794,120]
[358655575,1745339457790,-500.0,0.00054794,120]
[358655576,1745339457801,-207.733252,0.00054794,120]
[358655577,1745339457811,-207.733252,0.00054794,120]
[358655578,1745339457821,-500.0,0.00054794,120]
[358655579,1745339457831,-207.733252,0.00054794,120]
[358655580,1745339457841,-43.93782309,0.00054794,120]
[358655581,1745339457863,-163.79542891,0.00054794,120]
[358655582,1745339457873,-565.16699911,0.00054794,120]
[358655583,1745339457883,-172.33633683,0.00054794,120]
[358655584,1745339457921,-362.78365036,0.00054794,120]
[358655585,1745339457932,-500.0,0.00054794,120]
[358655586,1745339457941,-500.0,0.00054794,120]
[358655587,1745339457952,-500.0,0.00054794,120]
[358655588,1745339457961,-500.0,0.00054794,120]
[358655589,1745339457972,-500.0,0.00054794,120]
[358655590,1745339457982,-531.26808267,0.00054794,120]
[358655591,1745339457992,-500.0,0.00054794,120]
[358655592,1745339458004,-500.0,0.00054794,120]
[358655593,1745339458015,-838.69,0.00054794,120]
[358655594,1745339458025,-500.0,0.00054794,120]
[358655595,1745339458035,-500.0,0.00054794,120]
[358655596,1745339458046,-500.0,0.00054794,120]
[358655597,1745339458055,-500.0,0.00054794,120]
[358655598,1745339458066,-895.2,0.00054794,2]
[358655599,1745339458075,-500.0,0.00054794,120]
[358655600,1745339458085,-500.0,0.00054794,120]
[358655601,1745339458098,-500.0,0.00054794,120]
[358655602,1745339458108,-500.0,0.00054794,120]
[358655603,1745339458118,-244.84874971,0.00054794,120]
[358655604,1745339458132,-776.44134356,0.00054794,120]
[358655605,1745339458149,-340.62990673,0.00054794,120]
[358655606,1745339458159,-500.0,0.00054794,120]
[358655607,1745339458169,-2117.44,0.00054794,120]
[358655608,1745339458183,-1383.19,0.00054794,120]
[358655609,1745339458193,-151.0,0.00054794,120]
[358655610,1745339458202,-509.6699672,0.00054794,120]
[358655611,1745339458212,-500.0,0.00054794,120]
[358655612,1745339458222,-645.54,0.00054794,120]
[358655613,1745339458232,-500.0,0.00054794,120]
[358655614,1745339458242,-151.0,0.00054794,120]
[358655615,1745339458252,-151.0,0.00054794,120]
[358655616,1745339458264,-500.0,0.00054794,120]
[358655617,1745339458274,-151.0,0.00054794,120]
[358655618,1745339458283,-500.0,0.00054794,120]
[358655619,1745339458293,-500.0,0.00054794,120]
[358655620,1745339458303,-500.0,0.00054794,120]
[358655621,1745339458313,-500.0,0.00054794,120]
[358655622,1745339458322,-513.43355245,0.00054794,120]
[358655623,1745339458331,-500.0,0.00054794,120]
[358655624,1745339458343,-558.8831218,0.00054794,120]
[358655625,1745339458356,-538.05300615,0.00054794,120]
[358655626,1745339458366,-500.0,0.00054794,120]
[358655627,1745339458375,-500.0,0.00054794,120]
[358655628,1745339458384,-729.221101,0.00054794,120]
[358655629,1745339458395,-729.221101,0.00054794,120]
[358655630,1745339458406,-500.0,0.00054794,120]
[358655631,1745339458418,-500.0,0.00054794,120]
[358655632,1745339458428,-555.72622151,0.00054794,120]
[358655633,1745339458437,-500.0,0.00054794,120]
[358655634,1745339458447,-500.0,0.00054794,120]
[358655635,1745339458457,-500.0,0.00054794,120]
[358655636,1745339458467,-500.0,0.00054794,120]
[358655637,1745339458478,-500.0,0.00054794,120]
[358655638,1745339458489,-729.221101,0.00054794,120]
[358655639,1745339458499,-729.221101,0.00054794,120]
[358655640,1745339458509,-500.0,0.00054794,120]
[358655641,1745339458518,-500.0,0.00054794,120]
[358655642,1745339458528,-523.33736286,0.00054794,120]
[358655643,1745339458538,-500.0,0.00054794,120]
[358655644,1745339458547,-500.0,0.00054794,120]
[358655645,1745339458558,-409.48829742,0.00054794,120]
[358655646,1745339458567,-554.32672296,0.00054794,120]
[358655647,1745339458577,-1295.07,0.00054794,120]
[358655648,1745339458587,-692.74,0.00054794,120]
[358655649,1745339458596,-500.0,0.00054794,120]
[358655650,1745339458606,-510.68314664,0.00054794,120]
[358655651,1745339458616,-500.0,0.00054794,120]
[358655652,1745339458626,-500.0,0.00054794,120]
[358655653,1745339458635,-500.0,0.00054794,120]
[358655654,1745339458645,-513.18879346,0.00054794,120]
[358655655,1745339458655,-1324.04,0.00054794,120]
[358655656,1745339458665,-500.0,0.00054794,120]
[358655657,1745339458675,-500.0,0.00054794,120]
[358655658,1745339458685,-514.84327562,0.00054794,120]
[358655659,1745339458695,-886.81,0.00054794,120]
[358655660,1745339458705,-500.0,0.00054794,120]
[358655661,1745339458715,-500.0,0.00054794,120]
[358655662,1745339458727,-500.0,0.00054794,120]
[358655663,1745339458736,-1101.92,0.00054794,120]
[358655664,1745339458746,-500.0,0.00054794,120]
[358655665,1745339458756,-500.0,0.00054794,120]
[358655666,1745339458766,-844.83,0.00054794,120]
[358655667,1745339458775,-500.0,0.00054794,120]
[358655668,1745339458785,-783.81,0.00054794,120]
[358655669,1745339458795,-1000.0,0.00054794,120]
[358655670,1745339458805,-628.76829777,0.00054794,120]
[358655671,1745339458815,-808.14,0.00054794,120]
[358655672,1745339458825,-500.0,0.00054794,120]
[358655673,1745339458835,-1038.57,0.00054794,120]
[358655674,1745339458845,-500.0,0.00054794,120]
[358655675,1745339458855,-500.0,0.00054794,120]
[358655676,1745339458865,-500.0,0.00054794,120]
[358655677,1745339458875,-500.0,0.00054794,120]
[358655678,1745339458885,-804.64,0.00054794,120]
[358655679,1745339458896,-500.0,0.00054794,120]
[358655680,1745339458906,-506.83260265,0.00054794,120]
[358655681,1745339458916,-530.68871221,0.00054794,120]
[358655682,1745339458927,-500.0,0.00054794,120]
[358655683,1745339458937,-937.8,0.00054794,120]
[358655684,1745339458948,-500.0,0.00054794,120]
[358655685,1745339458957,-1559.53,0.00054794,120]
[358655686,1745339458967,-500.0,0.00054794,120]
[358655687,1745339458979,-500.0,0.00054794,120]
[358655688,1745339458989,-727.45,0.00054794,120]
[358655689,1745339458999,-500.0,0.00054794,120]
[358655690,1745339459010,-500.0,0.00054794,120]
[358655691,1745339459020,-573.61796286,0.00054794,120]
[358655692,1745339459030,-725.57,0.00054794,120]
[358655693,1745339459040,-151.0,0.00054794,120]
[358655694,1745339459050,-151.0,0.00054794,120]
[358655695,1745339459060,-614.69,0.00054794,120]
[358655696,1745339459070,-500.0,0.00054794,120]
[358655697,1745339459080,-633.17,0.00054794,120]
[358655698,1745339459090,-1395.12,0.00054794,120]
[358655699,1745339459104,-322.5930663,0.00054794,120]
[358655700,1745339459114,-500.0,0.00054794,120]
[358655701,1745339459124,-583.16945876,0.00054794,120]
[358655702,1745339459135,-676.74,0.00054794,120]
[358655703,1745339459145,-1124.4,0.00054794,120]
[358655704,1745339459155,-500.0,0.00054794,120]
[358655705,1745339459166,-522.0,0.00054794,120]
[358655706,1745339459177,-1123.45,0.00054794,120]
[358655707,1745339459187,-500.0,0.00054794,120]
[358655708,1745339459198,-500.0,0.00054794,120]
[358655709,1745339459207,-151.0,0.00054794,120]
[358655710,1745339459217,-845.08,0.00054794,120]
[358655711,1745339459227,-151.0,0.00054794,120]
[358655712,1745339459237,-500.0,0.00054794,120]
[358655713,1745339459247,-1864.66,0.00054794,120]
[358655714,1745339459257,-790.05,0.00054794,120]
[358655715,1745339459267,-500.0,0.00054794,120]
[358655716,1745339459276,-500.0,0.00054794,120]
[358655717,1745339459286,-153.720392,0.00054794,120]
[358655718,1745339459297,-510.78282608,0.00054794,120]
[358655719,1745339459308,-226.033229,0.00054794,120]
[358655720,1745339459320,-500.0,0.00054794,120]
[358655721,1745339459332,-500.0,0.00054794,120]
[358655722,1745339459343,-500.0,0.00054794,120]
[358655723,1745339459355,-504.2,0.00054794,120]
[358655724,1745339459365,-500.0,0.00054794,120]
[358655725,1745339459374,-2739.92,0.00054794,120]
[358655726,1745339459384,-504.5374074,0.00054794,120]
[358655727,1745339459394,-518.17364776,0.00054794,120]
[358655728,1745339459404,-226.033229,0.00054794,120]
[358655729,1745339459414,-500.0,0.00054794,120]
[358655730,1745339459423,-696.45,0.00054794,120]
[358655731,1745339459433,-151.0,0.00054794,120]
[358655732,1745339459443,-151.0,0.00054794,120]
[358655733,1745339459453,-1552.9,0.00054794,120]
[358655734,1745339459464,-1408.61,0.00054794,120]
[358655735,1745339459474,-1411.84761,0.00054794,120]
[358655736,1745339459483,-1411.84761,0.00054794,120]
[358655737,1745339459492,-500.0,0.00054794,120]
[358655738,1745339459502,-514.04306668,0.00054794,120]
[358655739,1745339459512,-500.0,0.00054794,120]
[358655740,1745339459522,-1411.84761,0.00054794,120]
[358655741,1745339459532,-1411.84761,0.00054794,120]
[358655742,1745339459545,-500.0,0.00054794,120]
[358655743,1745339459556,-735.38,0.00054794,120]
[358655744,1745339459566,-497.99964248,0.00054794,120]
[358655745,1745339459579,-518.29332915,0.00054794,120]
[358655746,1745339459590,-500.0,0.00054794,120]
[358655747,1745339459601,-1679.9,0.00054794,120]
[358655748,1745339459611,-500.0,0.00054794,120]
[358655749,1745339459621,-500.0,0.00054794,120]
[358655750,1745339459631,-2146.68,0.00054794,120]
[358655751,1745339459641,-500.0,0.00054794,120]
[358655752,1745339459651,-2607.04,0.00054794,120]
[358655753,1745339459661,-500.0,0.00054794,120]
[358655754,1745339459856,-500.0,0.00054794,120]
[358655755,1745339459867,-500.0,0.00054794,120]
[358655756,1745339459877,-500.0,0.00054794,30]
[358655757,1745339459887,-500.0,0.00054794,120]
[358655758,1745339459896,-500.0,0.00054794,120]
[358655759,1745339459907,-500.0,0.00054794,120]
[358655760,1745339459916,-500.0,0.00054794,120]
[358655761,1745339459925,-500.0,0.00054794,120]
[358655762,1745339459936,-500.0,0.00054794,120]
[358655763,1745339459945,-500.0,0.00054794,120]
[358655764,1745339459954,-1720.02,0.00054794,120]
[358655765,1745339459964,-500.0,0.00054794,120]
[358655766,1745339459974,-3130.57,0.00054794,120]
[358655767,1745339459983,-500.0,0.00054794,120]
[358655768,1745339459992,-500.0,0.00054794,120]
[358655769,1745339460002,-500.0,0.00054794,120]
[358655770,1745339460012,-500.0,0.00054794,120]
[358655771,1745339460022,-1131.59,0.00054794,120]
[358655772,1745339460031,-632.01,0.00054794,120]
[358655773,1745339460041,-500.0,0.00054794,120]
[358655774,1745339460050,-500.0,0.00054794,120]
[358655775,1745339460059,-500.0,0.00054794,120]
[358655776,1745339460068,-500.0,0.00054794,120]
[358655777,1745339460078,-500.0,0.00054794,120]
[358655778,1745339460087,-500.0,0.00054794,120]
[358655779,1745339460102,-500.0,0.00054794,120]
[358655780,1745339460111,-500.0,0.00054794,120]
[358655781,1745339460121,-500.0,0.00054794,120]
[358655782,1745339460131,-838.51453,0.00054794,120]
[358655783,1745339460144,-500.0,0.00054794,120]
[358655784,1745339460153,-2174.57,0.00054794,120]
[358655785,1745339460163,-573.84,0.00054794,120]
[358655786,1745339460172,-1077.27,0.00054794,120]
[358655787,1745339460183,-500.0,0.00054794,120]
[358655788,1745339460192,-516.88760229,0.00054794,120]
[358655789,1745339460201,-500.0,0.00054794,120]
[358655790,1745339460211,-500.0,0.00054794,120]
[358655791,1745339460220,-2265.07697491,0.00054794,30]
[358655792,1745339460230,-1796.816851,0.00054794,120]
[358655793,1745339460240,-500.0,0.00054794,120]
[358655794,1745339460250,-151.0,0.00054794,120]
[358655795,1745339460259,-151.0,0.00054794,120]
[358655796,1745339460268,-500.0,0.00054794,120]
[358655797,1745339460277,-500.0,0.00054794,120]
[358655798,1745339460287,-500.0,0.00054794,120]
[358655799,1745339460296,-500.0,0.00054794,120]
[358655800,1745339460306,-607.80426826,0.00054794,120]
[358655801,1745339460316,-1473.22,0.00054794,120]
[358655802,1745339460326,-5315.457728,0.00054794,120]
[358655803,1745339460335,-517.02315307,0.00054794,30]
[358655804,1745339460344,-5315.457728,0.00054794,120]
[358655805,1745339460354,-810.99,0.00054794,120]
[358655806,1745339460363,-835.16,0.00054794,120]
[358655807,1745339460373,-500.0,0.00054794,120]
[358655808,1745339460382,-828.58,0.00054794,120]
[358655809,1745339460391,-500.0,0.00054794,120]
[358655810,1745339460400,-5315.457728,0.00054794,120]
[358655811,1745339460410,-5315.457728,0.00054794,120]
[358655812,1745339460419,-500.0,0.00054794,120]
[358655813,1745339460428,-506.19798958,0.00054794,120]
[358655814,1745339460438,-500.0,0.00054794,120]
[358655815,1745339460449,-538.93,0.00054794,120]
[358655816,1745339460460,-500.0,0.00054794,120]
[358655817,1745339460469,-603.27570033,0.00054794,120]
[358655818,1745339460479,-500.0,0.00054794,120]
[358655819,1745339460488,-500.0,0.00054794,120]
[358655820,1745339460498,-500.0,0.00054794,120]
[358655821,1745339460507,-514.56776063,0.00054794,120]
[358655822,1745339460516,-500.0,0.00054794,120]
[358655823,1745339460527,-500.0,0.00054794,120]
[358655824,1745339460538,-500.0,0.00054794,120]
[358655825,1745339460547,-1622.47,0.00054794,120]
[358655826,1745339460556,-500.0,0.00054794,120]
[358655827,1745339460566,-633.2,0.00054794,120]
[358655828,1745339460575,-907.89,0.00054794,120]
[358655829,1745339460586,-500.0,0.00054794,120]
[358655830,1745339460596,-618.44,0.00054794,120]
[358655831,1745339460607,-1668.17,0.00054794,120]
[358655832,1745339460617,-500.0,0.00054794,120]
[358655833,1745339460626,-1876.35,0.00054794,120]
[358655834,1745339460636,-1180.64,0.00054794,120]
[358655835,1745339460646,-567.06,0.00054794,120]
[358655836,1745339460655,-258.12117442,0.00054794,120]
[358655837,1745339460665,-500.0,0.00054794,120]
[358655838,1745339460674,-1466.230782,0.00054794,120]
[358655839,1745339460684,-1466.230782,0.00054794,120]
[358655840,1745339460693,-513.05279477,0.00054794,120]
[358655841,1745339460703,-500.0,0.00054794,120]
[358655842,1745339460713,-518.42878029,0.00054794,120]
[358655843,1745339460723,-1466.230782,0.00054794,120]
[358655844,1745339460733,-500.10202874,0.00054794,120]
[358655845,1745339460742,-500.0,0.00054794,120]
[358655846,1745339460752,-1466.230782,0.00054794,120]
[358655847,1745339460762,-519.61895432,0.00054794,120]
[358655848,1745339460772,-500.0,0.00054794,120]
[358655849,1745339460782,-151.0,0.00054794,120]
[358655850,1745339460792,-151.0,0.00054794,120]
[358655851,1745339460802,-500.0,0.00054794,120]
[358655852,1745339460812,-500.0,0.00054794,120]
[358655853,1745339460822,-500.0,0.00054794,120]
[358655854,1745339460831,-654.65,0.00054794,120]
[358655855,1745339460841,-500.0,0.00054794,120]
[358655856,1745339460850,-1276.74,0.00054794,120]
[358655857,1745339460860,-500.0,0.00054794,120]
[358655858,1745339460869,-500.0,0.00054794,120]
[358655859,1745339460879,-500.0,0.00054794,120]
[358655860,1745339460889,-500.0,0.00054794,120]
[358655861,1745339460898,-500.0,0.00054794,120]
[358655862,1745339460909,-929.19,0.00054794,120]
[358655863,1745339460919,-1363.28,0.00054794,120]
[358655864,1745339460930,-500.0,0.00054794,120]
[358655865,1745339460940,-2102.99,0.00054794,120]
[358655866,1745339460950,-500.0,0.00054794,120]
[358655867,1745339460960,-500.0,0.00054794,120]
[358655868,1745339460969,-500.0,0.00054794,120]
[358655869,1745339460980,-946.74,0.00054794,120]
[358655870,1745339460990,-756.31,0.00054794,120]
[358655871,1745339460999,-500.0,0.00054794,120]
[358655872,1745339461009,-596.28,0.00054794,120]
[358655873,1745339461019,-446.57960087,0.00054794,120]
[358655874,1745339461029,-500.0,0.00054794,120]
[358655875,1745339461038,-511.68323124,0.00054794,120]
[358655876,1745339461049,-1000.0,0.00054794,2]
[358655877,1745339461058,-1000.0,0.00054794,2]
[358655878,1745339461067,-500.0,0.00054794,120]
[358655879,1745339461077,-518.31561378,0.00054794,120]
[358655880,1745339461086,-1000.0,0.00054794,2]
[358655881,1745339461101,-1000.0,0.00054794,2]
[358655882,1745339461111,-1000.0,0.00054794,2]
[358655883,1745339461120,-1000.0,0.00054794,2]
[358655884,1745339461131,-1000.0,0.00054794,2]
[358655885,1745339461142,-1011.61342705,0.00054794,2]
[358655886,1745339461152,-508.37128251,0.00054794,120]
[358655887,1745339461161,-500.0,0.00054794,120]
[358655888,1745339461170,-259.325628,0.00054794,120]
[358655889,1745339461180,-259.325628,0.00054794,120]
[358655890,1745339461189,-107.02143684,0.00054794,120]
[358655891,1745339461235,-392.97856316,0.00054794,120]
[358655892,1745339461245,-326.16711684,0.00054794,120]
[358655893,1745339461801,-173.83288316,0.00054794,120]
[358655894,1745339461811,-500.0,0.00054794,120]
[358655895,1745339461821,-259.325628,0.00054794,120]
[358655896,1745339461831,-548.95,0.00054794,120]
[358655897,1745339461841,-259.325628,0.00054794,120]
[358655898,1745339461850,-500.0,0.00054794,120]
[358655899,1745339461860,-500.0,0.00054794,120]
[358655900,1745339461869,-500.0,0.00054794,120]
[358655901,1745339461879,-151.0,0.00054794,120]
[358655902,1745339461889,-151.0,0.00054794,120]
[358655903,1745339461899,-500.0,0.00054794,120]
[358655904,1745339461908,-1061.93,0.00054794,120]
[358655905,1745339461918,-533.71806155,0.00054794,120]
[358655906,1745339461929,-500.0,0.00054794,120]
[358655907,1745339461938,-500.0,0.00054794,120]
[358655908,1745339461947,-500.0,0.00054794,120]
[358655909,1745339461957,-500.0,0.00054794,120]
[358655910,1745339461966,-500.0,0.00054794,120]
[358655911,1745339461977,-981.54,0.00054794,120]
[358655912,1745339461988,-879.96,0.00054794,120]
[358655913,1745339462000,-1424.05,0.00054794,120]
[358655914,1745339462010,-572.74173836,0.00054794,120]
[358655915,1745339462019,-642.23719991,0.00054794,120]
[358655916,1745339462029,-500.0,0.00054794,120]
[358655917,1745339462038,-2000.0,0.00054794,120]
[358655918,1745339462048,-669.06,0.00054794,120]
[358655919,1745339462058,-539.49680334,0.00054794,120]
[358655920,1745339462068,-1570.56,0.00054794,120]
[358655921,1745339462079,-500.0,0.00054794,120]
[358655922,1745339462090,-500.0,0.00054794,120]
[358655923,1745339462104,-151.0,0.00054794,120]
[358655924,1745339462113,-151.0,0.00054794,120]
[358655925,1745339462124,-500.0,0.00054794,120]
[358655926,1745339462134,-224.477254,0.00054794,120]
[358655927,1745339462143,-905.59,0.00054794,120]
[358655928,1745339462153,-500.0,0.00054794,120]
[358655929,1745339462164,-500.0,0.00054794,120]
[358655930,1745339462173,-500.0,0.00054794,120]
[358655931,1745339462184,-500.0,0.00054794,120]
[358655932,1745339462194,-500.0,0.00054794,120]
[358655933,1745339462203,-500.0,0.00054794,120]
[358655934,1745339462212,-500.0,0.00054794,120]
[358655935,1745339462222,-500.0,0.00054794,120]
[358655936,1745339462235,-500.0,0.00054794,120]
[358655937,1745339462245,-500.0,0.00054794,120]
[358655938,1745339462255,-500.0,0.00054794,120]
[358655939,1745339462264,-500.0,0.00054794,120]
[358655940,1745339462274,-500.0,0.00054794,120]
[358655941,1745339462284,-500.0,0.00054794,120]
[358655942,1745339462294,-500.0,0.00054794,120]
[358655943,1745339462303,-504.13499575,0.00054794,120]
[358655944,1745339462315,-500.0,0.00054794,120]
[358655945,1745339462327,-500.0,0.00054794,120]
[358655946,1745339462338,-500.0,0.00054794,120]
[358655947,1745339462349,-500.0,0.00054794,120]
[358655948,1745339462358,-500.0,0.00054794,120]
[358655949,1745339462369,-500.0,0.00054794,120]
[358655950,1745339462378,-500.0,0.00054794,120]
[358655951,1745339462387,-500.0,0.00054794,120]
[358655952,1745339462396,-500.0,0.00054794,120]
[358655953,1745339462405,-500.0,0.00054794,120]
[358655954,1745339462414,-500.0,0.00054794,120]
[358655955,1745339462423,-500.0,0.00054794,120]
[358655956,1745339462432,-521.53726024,0.00054794,120]
[358655957,1745339462441,-500.0,0.00054794,120]
[358655958,1745339462451,-500.0,0.00054794,120]
[358655959,1745339462460,-625.0,0.00054794,120]
[358655960,1745339462468,-500.0,0.00054794,120]
[358655961,1745339462479,-500.0,0.00054794,120]
[358655962,1745339462488,-500.0,0.00054794,120]
[358655963,1745339462497,-547.56,0.00054794,120]
[358655964,1745339462507,-500.0,0.00054794,120]
[358655965,1745339462516,-500.0,0.00054794,120]
[358655966,1745339462525,-500.0,0.00054794,120]
[358655967,1745339462535,-500.0,0.00054794,120]
[358655968,1745339462544,-500.0,0.00054794,120]
[358655969,1745339462553,-500.0,0.00054794,120]
[358655970,1745339462562,-591.49131813,0.00054794,120]
[358655971,1745339462571,-500.0,0.00054794,120]
[358655972,1745339462580,-299.57143769,0.00054794,120]
[358655973,1745339462589,-500.0,0.00054794,120]
[358655974,1745339462598,-500.0,0.00054794,120]
[358655975,1745339462607,-880.065452,0.00054794,120]
[358655976,1745339462616,-880.065452,0.00054794,120]
[358655977,1745339462626,-500.0,0.00054794,120]
[358655978,1745339462636,-500.0,0.00054794,120]
[358655979,1745339462645,-500.0,0.00054794,120]
[358655980,1745339462655,-880.065452,0.00054794,120]
[358655981,1745339462664,-880.065452,0.00054794,120]
[358655982,1745339462673,-1008.43,0.00054794,120]
[358655983,1745339462683,-500.0,0.00054794,120]
[358655984,1745339462693,-2056.89,0.00054794,120]
[358655985,1745339462702,-500.0,0.00054794,120]
[358655986,1745339462711,-4.47440421,0.00054794,120]
[358655987,1745339462729,-146.52559579,0.00054794,120]
[358655988,1745339462739,-222.10241347,0.00054794,120]
[358655989,1745339462756,-277.89758653,0.00054794,120]
[358655990,1745339462766,-129.59559507,0.00054794,120]
[358655991,1745339462778,-21.40440493,0.00054794,120]
[358655992,1745339462989,-500.0,0.00054794,120]
[358655993,1745339462998,-152.62489803,0.00054794,120]
[358655994,1745339463019,-347.37510197,0.00054794,120]
[358655995,1745339463029,-500.0,0.00054794,10]
[358655996,1745339463038,-151.0,0.00054794,120]
[358655997,1745339463048,-151.0,0.00054794,120]
[358655998,1745339463057,-1442.21572384,0.00054794,120]
[358655999,1745339464018,-0.00485418,0.00054794,120]
[358656000,1745339464030,-537.70499981,0.00054794,120]
[358656001,1745339464054,-1535.99621117,0.00054794,120]
[358656002,1745339464064,-650.1095915,0.00054794,120]
[358656003,1745339464087,-2865.8121975,0.00054794,120]
[358656004,1745339464100,-500.0,0.00054794,120]
[358656005,1745339464110,-2059.84,0.00054794,120]
[358656006,1745339464120,-500.0,0.00054794,120]
[358656007,1745339464130,-500.0,0.00054794,120]
[358656008,1745339464141,-500.0,0.00054794,120]
[358656009,1745339464151,-500.0,0.00054794,120]
[358656010,1745339464160,-3515.921789,0.00054794,120]
[358656011,1745339464170,-500.0,0.00054794,120]
[358656012,1745339464182,-3515.921789,0.00054794,120]
[358656013,1745339464192,-500.0,0.00054794,120]
[358656014,1745339464201,-26.0242245,0.00054794,120]
[358656015,1745339464234,-473.9757755,0.00054794,120]
[358656016,1745339464244,-500.0,0.00054794,120]
[358656017,1745339464254,-947.41,0.00054794,120]
[358656018,1745339464264,-952.6,0.00054794,120]
[358656019,1745339464276,-151.0,0.00054794,120]
[358656020,1745339464286,-151.0,0.00054794,120]
[358656021,1745339464296,-500.0,0.00054794,120]
[358656022,1745339464305,-500.0,0.00054794,120]
[358656023,1745339464315,-500.0,0.00054794,120]
[358656024,1745339464327,-518.36761159,0.00054794,120]
[358656025,1745339464336,-512.96310961,0.00054794,120]
[358656026,1745339464346,-500.0,0.00054794,120]
[358656027,1745339464357,-955.86,0.00054794,120]
[358656028,1745339464368,-617.26322112,0.00054794,120]
[358656029,1745339464378,-512.16696201,0.00054794,120]
[358656030,1745339464388,-500.0,0.00054794,120]
[358656031,1745339464399,-936.4,0.00054794,120]
[358656032,1745339464409,-500.0,0.00054794,120]
[358656033,1745339464419,-933.57,0.00054794,120]
[358656034,1745339464429,-565.60979043,0.00054794,120]
[358656035,1745339464441,-500.0,0.00054794,120]
[358656036,1745339464452,-500.0,0.00054794,120]
[358656037,1745339464462,-593.41223792,0.00054794,120]
[358656038,1745339464472,-500.0,0.00054794,120]
[358656039,1745339464484,-1436.68,0.00054794,120]
[358656040,1745339464494,-1190.37,0.00054794,120]
[358656041,1745339464504,-500.0,0.00054794,120]
[358656042,1745339464514,-500.0,0.00054794,120]
[358656043,1745339464524,-500.0,0.00054794,120]
[358656044,1745339464534,-563.85,0.00054794,120]
[358656045,1745339464543,-500.0,0.00054794,120]
[358656046,1745339464553,-500.0,0.00054794,120]
[358656047,1745339464562,-609.73,0.00054794,120]
[358656048,1745339464572,-500.0,0.00054794,120]
[358656049,1745339464581,-163.300895,0.00054794,120]
[358656050,1745339464591,-3162.67,0.00054794,120]
[358656051,1745339464600,-506.62028953,0.00054794,90]
[358656052,1745339464609,-500.0,0.00054794,120]
[358656053,1745339464618,-1671.36,0.00054794,120]
[358656054,1745339464628,-1155.13,0.00054794,120]
[358656055,1745339464637,-500.0,0.00054794,120]
[358656056,1745339464647,-154.554267,0.00054794,120]
[358656057,1745339464657,-500.0,0.00054794,120]
[358656058,1745339464667,-154.554267,0.00054794,120]
[358656059,1745339464676,-580.4556801,0.00054794,120]
[358656060,1745339464687,-500.0,0.00054794,120]